fUST/lending_fUST_20251231
["ID","MTS","AMOUNT","RATE_DAILY","PERIOD"]
[400140530,1767148245285,-1000.0,0.00016776,2]
[400140531,1767148245295,-3500.0,0.00016986,2]
[400140532,1767148245304,-3500.0,0.00016986,2]
[400140533,1767148245313,-716.30033327,0.00017108,2]
[400140534,1767148245323,-1511.18997277,0.00017108,2]
[400140535,1767148245332,-4000.0,0.00017108,2]
[400140536,1767148245342,-4000.0,0.00017108,2]
[400140537,1767148245351,-151.0,0.000172,2]
[400140538,1767148245360,-500.0,0.00017227,2]
[400140539,1767148245370,-300.0,0.00017279,2]
[400140540,1767148245380,-385.0,0.00017466,2]
[400140541,1767148245390,-6511.8,0.00017489,2]
[400140542,1767148245400,-4000.0,0.00017534,2]
[400140543,1767148245409,-4000.0,0.00017534,2]
[400140544,1767148245419,-1182.62181526,0.00017654,2]
[400140545,1767148245428,-1513.30440151,0.00017656,2]
[400140546,1767148245438,-3030.39894568,0.00017656,2]
[400140547,1767148245448,-151.0,0.000178,2]
[400140548,1767148245458,-219.435139,0.000178,2]
[400140549,1767148245467,-219.435139,0.000178,2]
[400140550,1767148245477,-219.435139,0.000178,2]
[400140551,1767148245487,-219.435139,0.000178,2]
[400140552,1767148245496,-151.0,0.000178,2]
[400140553,1767148245506,-158.312179,0.000178,2]
[400140554,1767148245516,-47277.43634166,0.000178,3]
[400140555,1767148245525,-278.6904084,0.00017842,2]
[400140556,1767148245535,-1152.0,0.0001788,2]
[400140557,1767148245545,-1359.46767772,0.00017946,2]
[400140558,1767148245554,-501.86458353,0.00018,2]
[400140560,1767148245564,-99645.29989156,0.00018,2]
[400140564,1767148245729,-27247.21208767,0.00018,2]
[400140565,1767148245738,-1000.0,0.00018034,2]
[400140567,1767148245752,-1000.0,0.00018034,2]
[400140569,1767148245762,-1000.0,0.00018034,2]
[400140570,1767148245771,-1000.0,0.00018034,2]
[400140571,1767148245780,-1000.0,0.00018034,2]
[400140572,1767148245791,-1000.0,0.00018034,2]
[400140573,1767148245800,-1000.0,0.00018034,2]
[400140574,1767148245810,-1000.0,0.00018034,2]
[400140575,1767148245820,-1000.0,0.00018034,2]
[400140576,1767148245830,-1000.0,0.00018034,2]
[400140577,1767148245839,-644.46489559,0.00018034,2]
[400140578,1767148245849,-151.0,0.00018034,2]
[400140579,1767148245858,-500.0,0.00018034,2]
[400140580,1767148245868,-500.0,0.00018034,2]
[400140581,1767148245877,-500.0,0.00018034,2]
[400140582,1767148245887,-63.21656037,0.00018034,2]
[400140583,1767148245907,-436.78343963,0.00018034,2]
[400140584,1767148245918,-143.74175983,0.00018034,2]
[400140586,1767148245930,-356.25824017,0.00018034,2]
[400140588,1767148245939,-500.0,0.00018034,2]
[400140589,1767148245949,-151.0,0.00018034,2]
[400140591,1767148245959,-500.0,0.00018034,2]
[400140592,1767148245969,-151.0,0.00018034,2]
[400140594,1767148245979,-500.0,0.00018034,2]
[400140596,1767148245988,-151.0,0.00018034,2]
[400140597,1767148245997,-204.91987502,0.00018034,2]
[400140599,1767148246008,-295.08012498,0.00018034,2]
[400140600,1767148246018,-151.0,0.00018034,2]
[400140601,1767148246027,-53.91987502,0.00018034,2]
[400140603,1767148246039,-446.08012498,0.00018034,2]
[400140604,1767148246049,-151.0,0.00018034,2]
[400140605,1767148246059,-500.0,0.00018034,2]
[400140606,1767148246068,-151.0,0.00018034,2]
[400140607,1767148246078,-500.0,0.00018034,2]
[400140608,1767148246089,-151.0,0.00018034,2]
[400140610,1767148246098,-500.0,0.00018034,2]
[400140611,1767148246108,-151.0,0.00018034,2]
[400140612,1767148246117,-500.0,0.00018034,2]
[400140613,1767148246126,-151.0,0.00018034,2]
[400140614,1767148246135,-151.0,0.00018034,2]
[400140615,1767148246145,-153.96374261,0.00018034,2]
[400140616,1767148246154,-2487.15318209,0.00018034,2]
[400140617,1767148246163,-256.05842471,0.00018034,2]
[400140618,1767148246173,-187.78006525,0.00018034,2]
[400140619,1767148246182,-2814.93358538,0.00018049,2]
[400140622,1767148246285,-250.0,0.00018049,2]
[400140623,1767148246297,-1544.06641462,0.00018049,2]
[400140624,1767148246306,-635.90970538,0.00018082,2]
[400140625,1767148246695,-3505.11836464,0.00018082,2]
[400140626,1767148246877,328.68,0.00012329,2]
[400140627,1767148247048,-102.03649754,0.00018082,2]
[400140628,1767148247059,-256.93543244,0.00018082,2]
[400140629,1767148247068,-2261.02463228,0.00018082,2]
[400140630,1767148247610,-454.932072,0.00013272,2]
[400140631,1767148247622,-21361.91266681,0.00013272,2]
[400140632,1767148247632,-446.8857319,0.00018082,2]
[400140633,1767148247641,-500.0,0.00018134,2]
[400140634,1767148247651,-421.47225264,0.00018326,2]
[400140635,1767148247660,-1000.0,0.00018454,2]
[400140636,1767148247670,-244.0,0.00018454,2]
[400140637,1767148247679,-533.88981491,0.00018582,2]
[400140638,1767148247690,-151.0,0.00018582,2]
[400140639,1767148247699,-2579.17784983,0.00018582,2]
[400140640,1767148247708,-225.89242424,0.00018582,2]
[400140641,1767148247718,-5000.0,0.0001863,2]
[400140642,1767148247727,-3075.5290032,0.00018635,2]
[400140643,1767148247736,-7814.16,0.00018655,2]
[400140644,1767148247749,-302.90913937,0.000189,2]
[400140645,1767148247759,-2292.68518626,0.0001893,2]
[400140646,1767148247830,-170.90553052,0.0001893,2]
[400140647,1767148247841,-126.95570604,0.0001893,2]
[400140648,1767148247850,-330.05685762,0.00019037,2]
[400140649,1767148247860,-44.9554361,0.00019037,2]
[400140650,1767148247872,-264.40334013,0.00019037,2]
[400140651,1767148300252,10000.01,0.00012229,2]
[400140652,1767148300281,10000.01,0.00012229,2]
[400140654,1767148363930,-4614.1361455,0.00012134,2]
[400140655,1767148378921,-500.0,0.00012228,2]
[400140656,1767148378949,-260.69026331,0.00012228,2]
[400140657,1767148378976,-469.69342425,0.00012228,2]
[400140658,1767148379003,-500.0,0.00012228,2]
[400140659,1767148379030,-500.0,0.00012228,2]
[400140660,1767148379059,-500.0,0.00012228,2]
[400140661,1767148379086,-500.0,0.00012228,2]
[400140662,1767148379113,-500.0,0.00012228,2]
[400140663,1767148379265,-500.0,0.00012228,2]
[400140664,1767148379294,-500.0,0.00012228,2]
[400140665,1767148379322,-39.24262488,0.00012228,2]
[400140666,1767148379407,-460.75737512,0.00012228,2]
[400140667,1767148379436,-177.99205418,0.00012228,2]
[400140668,1767148379464,-500.0,0.00012228,2]
[400140669,1767148379492,-228.66562925,0.00012228,2]
[400140670,1767148379520,-500.0,0.00012228,2]
[400140671,1767148379548,-500.0,0.00012228,2]
[400140672,1767148379577,-500.0,0.00012228,2]
[400140673,1767148379605,-500.0,0.00012228,2]
[400140674,1767148379633,-259.60931661,0.00012228,2]
[400140675,1767148379659,-324.64871568,0.00012228,2]
[400140676,1767148379687,-497.0922096,0.00012228,2]
[400140677,1767148379716,-500.0,0.00012228,2]
[400140678,1767148379811,-406.07340968,0.00012228,2]
[400140679,1767148379838,-569.5727985,0.00012228,2]
[400140680,1767148379865,-182.48318431,0.00012228,2]
[400140681,1767148382267,300.0,0.00012227,2]
[400140682,1767148383513,300.0,0.00012227,2]
[400140683,1767148394123,-1200.0,0.00012228,2]
[400140684,1767148409754,-5447.71476975,0.00012229,2]
[400140685,1767148409779,-10000.01,0.00012229,2]
[400140686,1767148409881,-10000.01,0.00012229,2]
[400140687,1767148409977,-10000.01,0.00012229,2]
[400140688,1767148410130,-10000.01,0.00012229,2]
[400140689,1767148410234,-10000.01,0.00012229,2]
[400140690,1767148410339,-10000.01,0.00012229,2]
[400140691,1767148412359,-10000.01,0.00012229,2]
[400140692,1767148412476,-10000.01,0.00012229,2]
[400140693,1767148462787,500.0,0.00028767,120]
[400140728,1767148681885,166.92,9.99e-05,2]
[400140729,1767148682161,166.92,9.99e-05,2]
[400140730,1767148682448,166.92,9.99e-05,2]
[400140731,1767148782588,190.3949265,0.00011405,2]
[400140732,1767148827105,-1200.0,0.00012227,2]
[400140733,1767148842141,-500.0,0.00012228,2]
[400140734,1767148842171,-178.78539698,0.00012228,2]
[400140735,1767148857325,-1200.0,0.00012228,2]
[400140736,1767148857355,-300.0,0.00012228,2]
[400140737,1767148857382,-593.0,0.00012228,2]
[400140738,1767148862310,300.0,0.00012228,2]
[400140739,1767148896069,4009.7875708,0.00011519,2]
[400140740,1767148902985,425.592,0.00011984,2]
[400140741,1767148922649,300.0,0.00012228,2]
[400140743,1767148963713,-266.32017027,0.00012229,2]
[400140744,1767148978989,-4285.84503222,0.00012229,2]
[400140745,1767148979060,-10000.01,0.00012229,2]
[400140746,1767148979195,-10000.01,0.00012229,2]
[400140747,1767148979324,-10000.01,0.00012229,2]
[400140748,1767148979455,-10000.01,0.00012229,2]
[400140749,1767148979606,-10000.01,0.00012229,2]
[400140750,1767148979705,-10000.01,0.00012229,2]
[400140751,1767148979912,-10000.01,0.00012229,2]
[400140752,1767148980010,-10000.01,0.00012229,2]
[400140753,1767148980118,-10000.01,0.00012229,2]
[400140754,1767148991095,-5000.0,0.00012106,2]
[400140755,1767148991136,-0.01,0.00012228,2]
[400140756,1767148991211,-299.99,0.00012228,2]
[400140757,1767148991250,-9400.03,0.00012229,2]
[400140758,1767148991311,-10000.01,0.00012229,2]
[400140759,1767148991444,-10000.01,0.00012229,2]
[400140760,1767148991577,-10000.01,0.00012229,2]
[400140761,1767148991783,-10000.01,0.00012229,2]
[400140762,1767149015149,5000.0,0.00012096,2]
[400140763,1767149037991,5000.0,0.00012096,2]
[400140764,1767149044897,0.01,0.00011315,2]
[400140765,1767149044919,10000.01,0.00011315,2]
[400140766,1767149046071,-10000.01,0.00011315,2]
[400140767,1767149046188,-1483.1851898,0.00011315,2]
[400140768,1767149064221,500.0,0.00028767,120]
[400140769,1767149066499,153.0,7.9e-07,2]
[400140770,1767149067552,153.0,7.9e-07,2]
[400140771,1767149068645,153.0,7.9e-07,2]
[400140772,1767149069745,153.0,7.9e-07,2]
[400140773,1767149070795,153.0,7.9e-07,2]
[400140774,1767149071837,153.0,7.9e-07,2]
[400140775,1767149072948,153.0,7.9e-07,2]
[400140776,1767149180527,-3000.0,0.00011985,2]
[400140777,1767149188128,-2000.0,0.00011985,2]
[400140778,1767149192551,1000.0,0.00012,2]
[400140779,1767149199871,291.3799864,0.00011204,2]
[400140780,1767149206219,-3000.0,0.00012,2]
[400140781,1767149208586,5000.0,0.0001199,2]
[400140782,1767149230141,-807.28018208,0.00012,2]
[400140783,1767149232210,4193.55134758,0.0001199,2]
[400140784,1767149258004,194.6,0.00028767,120]
[400140785,1767149284492,225.87,0.0001,2]
[400140786,1767149358729,-192.71981792,0.00012,2]
[400140787,1767149358752,-65.68620699,0.00012053,2]
[400140788,1767149364086,-195.30755987,0.00012053,2]
[400140789,1767149364109,-1200.0,0.00012105,2]
[400140790,1767149364131,-300.0,0.00012127,2]
[400140791,1767149364157,-5827.72582022,0.00012128,2]
[400140792,1767149371096,-79156.17433176,0.00012128,2]
[400140793,1767149396485,-5000.0,0.00012006,2]
[400140794,1767149411526,-300.0,0.00012127,2]
[400140795,1767149411554,-300.0,0.00012127,2]
[400140796,1767149411581,-300.0,0.00012127,2]
[400140797,1767149411609,-1200.0,0.00012127,2]
[400140798,1767149419710,5000.0,0.00012127,2]
[400140847,1767149432509,-733.49220828,0.00012128,2]
[400140869,1767149435386,1479.09,0.00012128,2]
[400140915,1767149438360,-552.71502829,0.00012128,2]
[400140917,1767149438373,-19362.54608086,0.00012128,2]
[400140919,1767149438383,-591.0,0.00012128,2]
[400140921,1767149438393,-1897.36213633,0.00012135,2]
[400140923,1767149438402,-152.60205642,0.00012221,2]
[400140925,1767149438411,-500.0,0.00012225,2]
[400140927,1767149438422,-500.0,0.00012225,2]
[400140929,1767149438431,-500.0,0.00012225,2]
[400140931,1767149438440,-192.07395881,0.00012225,2]
[400140934,1767149438599,-500.0,0.00012225,2]
[400140935,1767149438610,-500.0,0.00012225,2]
[400140936,1767149438620,-500.0,0.00012225,2]
[400140937,1767149438630,-500.0,0.00012225,2]
[400140938,1767149438640,-500.0,0.00012225,2]
[400140939,1767149438650,-500.0,0.00012225,2]
[400140940,1767149438661,-429.22023426,0.00012225,2]
[400140941,1767149438671,-500.0,0.00012225,2]
[400140942,1767149438681,-500.0,0.00012225,2]
[400140943,1767149438691,-500.0,0.00012225,2]
[400140944,1767149438700,-500.0,0.00012225,2]
[400140945,1767149438711,-500.0,0.00012225,2]
[400140946,1767149438720,-500.0,0.00012225,2]
[400140947,1767149438730,-500.0,0.00012225,2]
[400140948,1767149438740,-500.0,0.00012225,2]
[400140949,1767149438751,-500.0,0.00012225,2]
[400140950,1767149438761,-500.0,0.00012225,2]
[400140951,1767149438771,-500.0,0.00012225,2]
[400140952,1767149438781,-500.0,0.00012225,2]
[400140953,1767149438791,-500.0,0.00012225,2]
[400140954,1767149438802,-346.80254103,0.00012225,2]
[400140955,1767149438812,-500.0,0.00012225,2]
[400140956,1767149438821,-500.0,0.00012225,2]
[400140957,1767149438831,-500.0,0.00012225,2]
[400140958,1767149438841,-500.0,0.00012225,2]
[400140959,1767149438851,-500.0,0.00012225,2]
[400140960,1767149438861,-500.0,0.00012225,2]
[400140961,1767149438871,-500.0,0.00012225,2]
[400140962,1767149438881,-500.0,0.00012225,2]
[400140963,1767149438891,-500.0,0.00012225,2]
[400140964,1767149438900,-500.0,0.00012225,2]
[400140965,1767149438910,-500.0,0.00012225,2]
[400140966,1767149438921,-500.0,0.00012225,2]
[400140967,1767149438931,-500.0,0.00012225,2]
[400140968,1767149438941,-500.0,0.00012225,2]
[400140969,1767149438951,-257.95019094,0.00012225,2]
[400140970,1767149438960,-500.0,0.00012225,2]
[400140971,1767149438970,-500.0,0.00012225,2]
[400140972,1767149438980,-500.0,0.00012225,2]
[400140973,1767149438990,-500.0,0.00012225,2]
[400140974,1767149439000,-500.0,0.00012225,2]
[400140975,1767149439011,-500.0,0.00012225,2]
[400140976,1767149439021,-500.0,0.00012225,2]
[400140977,1767149439031,-500.0,0.00012225,2]
[400140978,1767149439041,-500.0,0.00012225,2]
[400140979,1767149439051,-400.0,0.00012225,2]
[400140980,1767149439061,-500.0,0.00012225,2]
[400140981,1767149439070,-500.0,0.00012225,2]
[400140982,1767149439080,-500.0,0.00012225,2]
[400140983,1767149439089,-500.0,0.00012225,2]
[400140984,1767149439099,-500.0,0.00012225,2]
[400140985,1767149439108,-500.0,0.00012225,2]
[400140986,1767149439118,-50000.0,0.00012225,2]
[400140987,1767149439127,-159.94,0.00012225,2]
[400140988,1767149439137,-288.0,0.00012226,2]
[400140989,1767149439146,-1200.0,0.00012226,2]
[400140990,1767149439155,-500.0,0.00012228,2]
[400140991,1767149439165,-2633.55,0.00012329,2]
[400140992,1767149439174,-2194.63,0.00012329,2]
[400140993,1767149439185,-1828.86,0.00012329,2]
[400140994,1767149439194,-1524.05,0.00012329,2]
[400140995,1767149439204,-1270.04,0.00012329,2]
[400140996,1767149439214,-1058.36,0.00012329,2]
[400140997,1767149439223,-1058.36,0.00012329,2]
[400140998,1767149439233,-705.58,0.00012329,2]
[400140999,1767149439243,-219.06820581,0.00012375,2]
[400141000,1767149439252,-300.0,0.00012472,2]
[400141001,1767149439265,-300.0,0.00012472,2]
[400141002,1767149439275,-300.0,0.00012472,2]
[400141003,1767149439284,-300.0,0.00012472,2]
[400141004,1767149439293,-300.0,0.00012472,2]
[400141005,1767149439303,-300.0,0.00012472,2]
[400141006,1767149439312,-300.0,0.00012472,2]
[400141007,1767149439321,-300.0,0.00012472,2]
[400141008,1767149439330,-300.0,0.00012472,2]
[400141009,1767149439340,-300.0,0.00012472,2]
[400141010,1767149439349,-300.0,0.00012472,2]
[400141011,1767149439359,-300.0,0.00012472,2]
[400141012,1767149439368,-300.0,0.00012472,2]
[400141013,1767149439377,-300.0,0.00012472,2]
[400141014,1767149439387,-300.0,0.00012472,2]
[400141015,1767149439396,-600.0,0.00012472,2]
[400141016,1767149439404,-159.94,0.00012499,2]
[400141017,1767149439414,-500.0,0.00012502,2]
[400141018,1767149439423,-159.94685378,0.00012773,2]
[400141019,1767149439432,-500.0,0.00012776,2]
[400141020,1767149439442,-1202.91,0.00012782,2]
[400141021,1767149439451,-151.0,0.000128,2]
[400141022,1767149439460,-9081.84544508,0.00012858,2]
[400141023,1767149439470,-13254.68886101,0.000129,2]
[400141024,1767149439479,-500.0,0.0001305,2]
[400141025,1767149439490,-151.0,0.000131,2]
[400141026,1767149439499,-151.0,0.000132,2]
[400141027,1767149439508,-500.0,0.00013272,2]
[400141028,1767149439518,-269.11503579,0.00013272,2]
[400141029,1767149439527,-188.16786155,0.00013272,2]
[400141030,1767149439536,-500.0,0.00013273,2]
[400141031,1767149439546,-500.40003956,0.00013273,2]
[400141032,1767149439555,-500.0,0.00013273,2]
[400141033,1767149439565,-500.0,0.00013273,2]
[400141034,1767149439574,-500.0,0.00013273,2]
[400141035,1767149439583,-500.0,0.00013273,2]
[400141036,1767149439592,-500.0,0.00013273,2]
[400141037,1767149439601,-500.0,0.00013273,2]
[400141038,1767149439610,-605.4912637,0.00013273,2]
[400141039,1767149439620,-500.29804929,0.00013273,2]
[400141040,1767149439629,-500.0,0.00013273,2]
[400141041,1767149439639,-500.0,0.00013273,2]
[400141042,1767149439648,-500.0,0.00013273,2]
[400141043,1767149439657,-500.0,0.00013273,2]
[400141044,1767149439667,-500.0,0.00013273,2]
[400141045,1767149439676,-500.0,0.00013273,2]
[400141046,1767149439685,-500.0,0.00013273,2]
[400141047,1767149439695,-500.0,0.00013273,2]
[400141048,1767149439704,-500.0,0.00013273,2]
[400141049,1767149439713,-283.19128037,0.00013273,2]
[400141050,1767149439723,-500.23524339,0.00013273,2]
[400141051,1767149439732,-500.0,0.00013273,2]
[400141052,1767149439742,-500.0,0.00013273,2]
[400141053,1767149439751,-165.43017287,0.00013273,2]
[400141054,1767149439760,-217.80358859,0.00013273,2]
[400141055,1767149439770,-500.0,0.00013273,2]
[400141056,1767149439779,-500.0,0.00013273,2]
[400141057,1767149439788,-500.0,0.00013273,2]
[400141058,1767149439798,-500.0,0.00013273,2]
[400141059,1767149439807,-500.0,0.00013273,2]
[400141060,1767149439816,-500.6493699,0.00013273,2]
[400141061,1767149439825,-158.3582055,0.00013273,2]
[400141062,1767149439834,-500.0,0.00013273,2]
[400141063,1767149439844,-500.0,0.00013273,2]
[400141064,1767149439853,-500.0,0.00013273,2]
[400141065,1767149439862,-500.40294349,0.00013273,2]
[400141066,1767149439871,-500.0,0.00013273,2]
[400141068,1767149439880,-500.0,0.00013273,2]
[400141069,1767149439889,-500.0,0.00013273,2]
[400141070,1767149439899,-500.0,0.00013273,2]
[400141071,1767149439907,-500.0,0.00013273,2]
[400141072,1767149439916,-500.0,0.00013273,2]
[400141073,1767149439926,-500.0,0.00013273,2]
[400141074,1767149439935,-500.0,0.00013273,2]
[400141075,1767149439944,-500.0,0.00013273,2]
[400141076,1767149439953,-500.0,0.00013273,2]
[400141077,1767149439962,-210.55427854,0.00013273,2]
[400141078,1767149439971,-500.0,0.00013273,2]
[400141079,1767149439979,-500.0,0.00013273,2]
[400141080,1767149439988,-500.0,0.00013273,2]
[400141081,1767149439997,-500.0,0.00013273,2]
[400141082,1767149440006,-536.04304109,0.00013273,2]
[400141083,1767149440015,-500.0,0.00013273,2]
[400141084,1767149440024,-465.49966763,0.00013273,2]
[400141085,1767149440033,-500.54574778,0.00013273,2]
[400141086,1767149440042,-185.33376519,0.00013273,2]
[400141087,1767149440051,-500.0,0.00013273,2]
[400141088,1767149440060,-500.0,0.00013273,2]
[400141089,1767149440069,-500.0,0.00013273,2]
[400141090,1767149440079,-500.0,0.00013273,2]
[400141091,1767149440088,-500.0,0.00013273,2]
[400141092,1767149440097,-159.22862386,0.00013273,2]
[400141093,1767149440107,-500.0,0.00013273,2]
[400141094,1767149440116,-500.0,0.00013273,2]
[400141095,1767149440125,-268.54783585,0.00013273,2]
[400141096,1767149440134,-171.48972803,0.00013273,2]
[400141097,1767149440143,-500.0,0.00013273,2]
[400141098,1767149440152,-500.0,0.00013273,2]
[400141099,1767149440161,-500.0,0.00013273,2]
[400141100,1767149440170,-500.67873762,0.00013273,2]
[400141101,1767149440179,-500.0,0.00013273,2]
[400141102,1767149440188,-500.0,0.00013273,2]
[400141103,1767149440198,-500.0,0.00013273,2]
[400141104,1767149440207,-500.0,0.00013273,2]
[400141105,1767149440216,-500.0,0.00013273,2]
[400141106,1767149440225,-151.0,0.000133,2]
[400141107,1767149440235,-420.0,0.00013311,2]
[400141109,1767149440244,-500.0,0.00013324,2]
[400141111,1767149440253,-1680.0,0.00013339,2]
[400141112,1767149440265,-1680.0,0.00013418,2]
[400141113,1767149440274,-151.0,0.000135,2]
[400141114,1767149440284,-151.0,0.000135,2]
[400141115,1767149440293,-1897.36213629,0.00013511,2]
[400141116,1767149440303,-500.0,0.00013598,2]
[400141117,1767149440312,-1956.08637268,0.00013626,2]
[400141118,1767149440321,-300.0,0.00013673,2]
[400141119,1767149440331,-10000.0,0.00013696,2]
[400141120,1767149440339,-500.0,0.00013698,2]
[400141121,1767149440348,-532.44628047,0.00013698,2]
[400141122,1767149440358,-460.24579139,0.00013698,2]
[400141123,1767149440367,-320.11132174,0.00013698,2]
[400141124,1767149440376,-500.0,0.00013698,2]
[400141125,1767149440385,-500.0,0.00013698,2]
[400141126,1767149440394,-500.0,0.00013698,2]
[400141127,1767149440403,-500.0,0.00013698,2]
[400141128,1767149440413,-500.0,0.00013698,2]
[400141129,1767149440422,-500.0,0.00013698,2]
[400141130,1767149440431,-500.0,0.00013698,2]
[400141131,1767149440440,-515.22649473,0.00013698,2]
[400141132,1767149440451,-500.0,0.00013698,2]
[400141133,1767149440460,-500.0,0.00013698,2]
[400141134,1767149440470,-500.0,0.00013698,2]
[400141135,1767149440480,-500.0,0.00013698,2]
[400141136,1767149440489,-529.97530259,0.00013698,2]
[400141137,1767149440499,-500.0,0.00013698,2]
[400141138,1767149440509,-500.0,0.00013698,2]
[400141139,1767149440518,-500.0,0.00013698,2]
[400141140,1767149440527,-500.0,0.00013698,2]
[400141141,1767149440536,-500.0,0.00013698,2]
[400141142,1767149440545,-500.0,0.00013698,2]
[400141143,1767149440555,-500.0,0.00013698,2]
[400141144,1767149440564,-500.0,0.00013698,2]
[400141145,1767149440573,-541.20925051,0.00013698,2]
[400141146,1767149440583,-504.90264295,0.00013698,2]
[400141147,1767149440592,-463.96349702,0.00013698,2]
[400141148,1767149440602,-500.0,0.00013698,2]
[400141149,1767149440611,-500.0,0.00013698,2]
[400141150,1767149440620,-500.0,0.00013698,2]
[400141151,1767149440629,-500.0,0.00013698,2]
[400141152,1767149440639,-500.0,0.00013698,2]
[400141153,1767149440648,-500.0,0.00013698,2]
[400141154,1767149440657,-266.14271802,0.00013698,2]
[400141155,1767149440666,-1844.15,0.00013698,2]
[400141156,1767149440675,-1844.15,0.00013698,2]
[400141157,1767149440685,-1844.15,0.00013698,2]
[400141158,1767149440695,-1844.15,0.00013698,2]
[400141159,1767149440705,-1844.15,0.00013698,2]
[400141160,1767149440714,-1844.15,0.00013698,2]
[400141161,1767149440724,-1844.15,0.00013698,2]
[400141162,1767149440733,-1844.15,0.00013698,2]
[400141163,1767149440743,-1844.15,0.00013698,2]
[400141164,1767149440752,-1373.95008039,0.00013698,2]
[400141165,1767149440767,-470.19991961,0.00013698,2]
[400141166,1767149440776,-1378.99,0.00013698,2]
[400141167,1767149440786,-1844.15,0.00013698,2]
[400141168,1767149440795,-1378.99,0.00013698,2]
[400141169,1767149440804,-1844.15,0.00013698,2]
[400141170,1767149440814,-1378.99,0.00013698,2]
[400141171,1767149440823,-1844.15,0.00013698,2]
[400141172,1767149440832,-1378.99,0.00013698,2]
[400141173,1767149440841,-1844.15,0.00013698,2]
[400141174,1767149440851,-1378.99,0.00013698,2]
[400141175,1767149440860,-1844.15,0.00013698,2]
[400141176,1767149440869,-1378.99,0.00013698,2]
[400141177,1767149440878,-1844.15,0.00013698,2]
[400141178,1767149440888,-1378.99,0.00013698,2]
[400141179,1767149440897,-1844.15,0.00013698,2]
[400141180,1767149440906,-1378.99,0.00013698,2]
[400141181,1767149440915,-1844.15,0.00013698,2]
[400141182,1767149440924,-1378.99,0.00013698,2]
[400141183,1767149440933,-1844.15,0.00013698,2]
[400141184,1767149440943,-1378.99,0.00013698,2]
[400141185,1767149440952,-1844.15,0.00013698,2]
[400141186,1767149440961,-1378.99,0.00013698,2]
[400141187,1767149440971,-1844.15,0.00013698,2]
[400141188,1767149440980,-1378.99,0.00013698,2]
[400141189,1767149440989,-1844.15,0.00013698,2]
[400141190,1767149440999,-1378.99,0.00013698,2]
[400141191,1767149441008,-1844.15,0.00013698,2]
[400141192,1767149441018,-1378.99,0.00013698,2]
[400141193,1767149441028,-1844.37,0.00013698,2]
[400141194,1767149441037,-1378.99,0.00013698,2]
[400141195,1767149441046,-1378.99,0.00013698,2]
[400141196,1767149441056,-1378.99,0.00013698,2]
[400141197,1767149441065,-1378.99,0.00013698,2]
[400141198,1767149441074,-1378.99,0.00013698,2]
[400141199,1767149441083,-1378.99,0.00013698,2]
[400141200,1767149441093,-1378.99,0.00013698,2]
[400141201,1767149441103,-1378.99,0.00013698,2]
[400141202,1767149441112,-1378.99,0.00013698,2]
[400141203,1767149441121,-1379.11148784,0.00013698,2]
[400141204,1767149441131,-500.0,0.00013698,2]
[400141205,1767149441140,-262.16767073,0.00013698,2]
[400141206,1767149441149,-3532.091123,0.00013699,2]
[400141207,1767149441158,-15490.5579877,0.00013699,2]
[400141208,1767149441167,-500.0,0.00013699,2]